[Event "10th Iberoamericano-ch 2024"]
[Site "Linares"]
[Date "2024.09.27"]
[Round "5.40"]
[White "Galvan Cipriani, Viviana"]
[Black "Buiza Prieto, Eihartze"]
[Result "1/2-1/2"]
[ECO "A36"]
[WhiteElo "2141"]
[BlackElo "2056"]
[Annotator "ChessBase"]
[PlyCount "102"]
[EventDate "2024.09.25"]
[EventType "swiss"]
[EventCountry "ESP"]
[SourceTitle "playchess.com"]
[Source "ChessBase"]
[SourceQuality "1"]
[TimeControl "5400+30"]

1. c4 {[%emt 0:02:07]} c5 {[%emt 0:00:06]} 2. Nc3 {[%emt 0:00:34]} Nc6 {[%emt 0:00:08]} 3. g3 {[%emt 0:00:06]} g6 {[%emt 0:00:06]} 4. Bg2 {[%emt 0:00:04]} Bg7 {[%emt 0:00:29]} 5. e3 {[%emt 0:00:27]} e6 {[%emt 0:00:08]} 6. Nge2 {[%emt 0:00:15]} Nge7 {[%emt 0:00:30]} 7. Rb1 {[%emt 0:01:57]} O-O {[%emt 0:00:29]} 8. O-O {[%emt 0:00:30]} d5 {[%emt 0:03:03]} 9. d3 {[%emt 0:07:33]} b6 {[%emt 0:08:07]} 10. b3 {[%emt 0:00:30]} Bb7 {[%emt 0:00:30]} 11. Ba3 {[%emt 0:15:54]} Qd7 {[%emt 0:12:03]} 12. Qc2 {[%emt 0:01:50]} d4 {[%emt 0:00:12]} 13. exd4 {[%emt 0:00:30]} Nxd4 {[%emt 0:00:45]} 14. Nxd4 {[%emt 0:00:16]} Bxd4 {[%emt 0:00:07]} 15. Bxb7 {[%emt 0:00:39]} Qxb7 {[%emt 0:01:08]} 16. Ne2 {[%emt 0:07:02]} Nc6 {[%emt 0:03:34]} 17. h3 {[%emt 0:00:30]} Rad8 {[%emt 0:00:30]} 18. Kh2 {[%emt 0:02:12]} Ne5 {[%emt 0:00:30]} 19. Ng1 {[%emt 0:00:30]} Rd7 {[%emt 0:00:30]} 20. Bc1 {[%emt 0:00:30]} Nf3+ {[%emt 0:12:01]} 21. Nxf3 {[%emt 0:03:53]} Qxf3 {[%emt 0:00:30]} 22. Bf4 {[%emt 0:10:45]} Rfd8 23. b4 {[%emt 0:00:10]} cxb4 {[%emt 0:03:43]} 24. Rxb4 {[%emt 0:00:30]} Bc5 {[%emt 0:03:42]} 25. Rb3 {[%emt 0:05:18]} Rxd3 {[%emt 0:00:30]} 26. Bg5 {[%emt 0:00:30]} Rxb3 {[%emt 0:07:38]} 27. Qxb3 {[%emt 0:03:56]} Qxb3 {[%emt 0:00:12]} 28. axb3 {[%emt 0:00:09]} Rd3 {[%emt 0:00:30]} 29. Kg2 {[%emt 0:00:30]} Kg7 {[%emt 0:00:30]} 30. Rb1 {[%emt 0:03:44]} f6 {[%emt 0:09:05]} 31. b4 {[%emt 0:04:43]} Bxb4 {[%emt 0:00:30]} 32. Bxf6+ {[%emt 0:00:30]} Kxf6 {[%emt 0:00:30]} 33. Rxb4 {[%emt 0:00:30]} Rc3 {[%emt 0:05:03]} 34. f4 {[%emt 0:03:43]} Ke7 {[%emt 0:04:46]} 35. h4 {[%emt 0:00:30]} Kd6 {[%emt 0:00:30]} 36. h5 {[%emt 0:05:12]} gxh5 {[%emt 0:04:27]} 37. Kh3 {[%emt 0:00:30]} e5 {[%emt 0:00:30]} 38. fxe5+ {[%emt 0:00:30]} Kxe5 {[%emt 0:00:30]} 39. Rb5+ {[%emt 0:00:30]} Kf6 {[%emt 0:00:30]} 40. Rxh5 {[%emt 0:00:30]} Rxc4 {[%emt 0:00:30]} 41. Rxh7 {[%emt 0:00:30]} Ra4 {[%emt 0:00:30]} 42. Rb7 {[%emt 0:00:30]} Kg6 {[%emt 0:00:30]} 43. Rh7 Kf6 {[%emt 0:03:02]} 44. Rb7 {[%emt 0:03:11]} Kg6 {[%emt 0:00:30]} 45. g4 {[%emt 0:00:30]} Ra5 {[%emt 0:00:30]} 46. Kg3 {[%emt 0:00:30]} a6 {[%emt 0:00:30]} 47. Kh4 {[%emt 0:00:30]} b5 {[%emt 0:04:02]} 48. Rb6+ {[%emt 0:06:40]} Kg7 {[%emt 0:01:31]} 49. g5 {[%emt 0:00:18]} Ra1 {[%emt 0:00:13]} 50. Kh5 {[%emt 0:00:20]} Rh1+ {[%emt 0:00:09]} 51. Kg4 {[%emt 0:01:02]} Rf1 1/2-1/2

[Event "10th Iberoamericano-ch 2024"]
[Site "Linares"]
[Date "2024.09.28"]
[Round "6.1"]
[White "Garcia Ramos, Daniel"]
[Black "Quesada Perez, Luis Ernesto"]
[Result "0-1"]
[ECO "C50"]
[WhiteElo "2415"]
[BlackElo "2578"]
[Annotator "ChessBase"]
[PlyCount "112"]
[EventDate "2024.09.25"]
[EventType "swiss"]
[EventCountry "ESP"]
[SourceTitle "playchess.com"]
[Source "ChessBase"]
[SourceQuality "1"]
[TimeControl "5400+30"]

1. e4 {[%emt 0:03:23]} e5 {[%emt 0:00:05]} 2. Nf3 {[%emt 0:00:20]} Nc6 {[%emt 0:00:07]} 3. Bc4 {[%emt 0:00:09]} Nf6 {[%emt 0:00:14]} 4. d3 {[%emt 0:00:14]} Bc5 {[%emt 0:00:18]} 5. a4 {[%emt 0:00:28]} d6 {[%emt 0:00:26]} 6. a5 {[%emt 0:00:16]} a6 {[%emt 0:00:07]} 7. c3 {[%emt 0:00:55]} Ba7 {[%emt 0:04:11]} 8. O-O {[%emt 0:00:44]} O-O {[%emt 0:00:38]} 9. Be3 {[%emt 0:01:26]} Bxe3 {[%emt 0:00:26]} 10. fxe3 {[%emt 0:00:07]} Ne7 {[%emt 0:00:10]} 11. Nbd2 {[%emt 0:02:00]} Ng6 {[%emt 0:04:58]} 12. d4 {[%emt 0:19:21]} Qe7 {[%emt 0:13:09]} 13. Qb3 {[%emt 0:11:42]} Bd7 {[%emt 0:02:00]} 14. Rae1 {[%emt 0:12:43]} h6 {[%emt 0:07:03]} 15. h3 {[%emt 0:01:52]} Rab8 {[%emt 0:01:54]} 16. Qc2 {[%emt 0:02:41]} Rbe8 {[%emt 0:08:57]} 17. Rf2 {[%emt 0:06:49]} Kh8 {[%emt 0:12:37]} 18. Nf1 {[%emt 0:17:33]} c6 {[%emt 0:00:19]} 19. Ng3 {[%emt 0:03:40]} d5 {[%emt 0:00:31]} 20. exd5 {[%emt 0:00:10]} cxd5 {[%emt 0:00:11]} 21. Ba2 {[%emt 0:01:01]} e4 {[%emt 0:07:38]} 22. Nd2 {[%emt 0:00:05]} Qd6 {[%emt 0:00:54]} 23. Ndf1 {[%emt 0:03:43]} Ne7 {[%emt 0:00:37]} 24. Qb3 {[%emt 0:02:37]} Rc8 {[%emt 0:14:48]} 25. Ne2 {[%emt 0:01:46]} Bb5 {[%emt 0:00:51]} 26. Nfg3 {[%emt 0:00:47]} Nfg8 {[%emt 0:03:17]} 27. Qd1 {[%emt 0:02:43]} f5 {[%emt 0:00:32]} 28. Ref1 {[%emt 0:00:42]} g6 {[%emt 0:00:23]} 29. Bb3 {[%emt 0:02:40]} h5 {[%emt 0:06:19]} 30. Rf4 {[%emt 0:01:32]} Nh6 {[%emt 0:00:38]} 31. Ba4 {[%emt 0:01:13]} Bxa4 {[%emt 0:00:41]} 32. Qxa4 {[%emt 0:00:05]} g5 {[%emt 0:00:08]} 33. R4f2 {[%emt 0:00:28]} h4 {[%emt 0:00:14]} 34. Nh1 {[%emt 0:00:43]} f4 {[%emt 0:00:36]} 35. Qa3 {[%emt 0:00:49]} Qxa3 {[%emt 0:00:44]} 36. bxa3 {[%emt 0:00:01]} Nef5 {[%emt 0:00:07]} 37. exf4 {[%emt 0:00:21]} g4 {[%emt 0:00:22]} 38. Rb1 {[%emt 0:00:28]} g3 {[%emt 0:00:29]} 39. Rff1 {[%emt 0:00:12]} Rc7 {[%emt 0:02:29]} 40. Rb6 {[%emt 0:00:06]} Kg7 {[%emt 0:00:35]} 41. Rfb1 {[%emt 0:00:05]} Rff7 {[%emt 0:00:07]} 42. Re6 {[%emt 0:01:44]} Rf6 {[%emt 0:01:17]} 43. Re5 {[%emt 0:00:27]} Rd7 {[%emt 0:00:22]} 44. Re8 {[%emt 0:00:53]} Nf7 {[%emt 0:00:31]} 45. Rc8 {[%emt 0:00:16]} N7d6 {[%emt 0:01:08]} 46. Rb8 {[%emt 0:00:49]} Rf8 {[%emt 0:00:19]} 47. Rxf8 {[%emt 0:00:06]} Kxf8 {[%emt 0:00:05]} 48. Rb6 {[%emt 0:00:18]} Kf7 {[%emt 0:00:09]} 49. a4 {[%emt 0:00:36]} Nc4 {[%emt 0:01:17]} 50. Rb1 {[%emt 0:00:28]} Rc7 {[%emt 0:00:39]} 51. Rb4 {[%emt 0:01:09]} Nxa5 {[%emt 0:00:30]} 52. Kf1 {[%emt 0:00:11]} Nc4 {[%emt 0:00:08]} 53. Ke1 {[%emt 0:00:49]} Nce3 {[%emt 0:00:55]} 54. Kd2 {[%emt 0:00:19]} Nc4+ {[%emt 0:00:50]} 55. Kc1 {[%emt 0:00:17]} Ke6 {[%emt 0:00:11]} 56. Rb3 {[%emt 0:00:42]} Rg7 {[%emt 0:00:49]} 0-1

[Event "10th Iberoamericano-ch 2024"]
[Site "Linares"]
[Date "2024.09.28"]
[Round "6.4"]
[White "Santos Flores, Alberto"]
[Black "Avila Pavas, Santiago"]
[Result "0-1"]
[ECO "B03"]
[WhiteElo "2168"]
[BlackElo "2485"]
[Annotator "ChessBase"]
[PlyCount "100"]
[EventDate "2024.09.25"]
[EventType "swiss"]
[EventCountry "ESP"]
[SourceTitle "playchess.com"]
[Source "ChessBase"]
[SourceQuality "1"]
[TimeControl "5400+30"]

1. e4 {[%emt 0:00:04]} Nf6 {[%emt 0:02:30]} 2. e5 {[%emt 0:01:06]} Nd5 {[%emt 0:00:13]} 3. d4 {[%emt 0:00:24]} d6 {[%emt 0:00:11]} 4. Bc4 {[%emt 0:03:01]} Nb6 {[%emt 0:01:06]} 5. Bb3 {[%emt 0:00:05]} dxe5 {[%emt 0:00:21]} 6. Qf3 {[%emt 0:00:07]} e6 {[%emt 0:00:18]} 7. dxe5 {[%emt 0:00:04]} a5 {[%emt 0:00:19]} 8. c3 {[%emt 0:07:33]} Bd7 {[%emt 0:00:38]} 9. Nd2 {[%emt 0:11:59]} Bb5 {[%emt 0:07:48]} 10. c4 {[%emt 0:16:28]} Bc6 {[%emt 0:28:46]} 11. Qg3 {[%emt 0:00:51]} a4 {[%emt 0:00:41]} 12. Bc2 {[%emt 0:00:59]} Bb4 {[%emt 0:00:24]} 13. Qxg7 {[%emt 0:15:19]} Rf8 {[%emt 0:00:07]} 14. a3 {[%emt 0:00:03]} Ba5 {[%emt 0:00:50]} 15. Ne2 {[%emt 0:09:02]} Nxc4 {[%emt 0:33:07]} 16. Nc3 {[%emt 0:00:54]} Qd4 {[%emt 0:00:05]} 17. O-O {[%emt 0:09:13]} Nxd2 {[%emt 0:03:25]} 18. Rd1 {[%emt 0:03:33]} Bxc3 {[%emt 0:00:05]} 19. bxc3 {[%emt 0:00:04]} Qxc3 {[%emt 0:00:08]} 20. Bxd2 {[%emt 0:00:54]} Qxc2 {[%emt 0:00:09]} 21. Bb4 {[%emt 0:02:43]} Nd7 {[%emt 0:00:03]} 22. Qg5 {[%emt 0:01:44]} Nc5 {[%emt 0:01:34]} 23. Rac1 {[%emt 0:03:36]} Qg6 {[%emt 0:00:06]} 24. Qxg6 {[%emt 0:00:14]} fxg6 {[%emt 0:00:11]} 25. Bxc5 {[%emt 0:01:00]} Rf5 {[%emt 0:01:07]} 26. Be3 {[%emt 0:00:27]} Rd8 {[%emt 0:00:03]} 27. f4 {[%emt 0:01:07]} Rf7 {[%emt 0:01:01]} 28. Rxd8+ {[%emt 0:01:14]} Kxd8 {[%emt 0:00:06]} 29. Kf2 {[%emt 0:02:33]} Rd7 {[%emt 0:01:33]} 30. Rc2 {[%emt 0:01:17]} Bb5 {[%emt 0:10:28]} 31. g4 {[%emt 0:01:00]} Rd3 {[%emt 0:05:47]} 32. Rd2 {[%emt 0:00:18]} Rxd2+ {[%emt 0:00:04]} 33. Bxd2 {[%emt 0:00:01]} Kd7 {[%emt 0:00:08]} 34. Ke3 {[%emt 0:00:25]} c5 {[%emt 0:00:12]} 35. Ke4 {[%emt 0:02:29]} Kc6 {[%emt 0:00:03]} 36. h4 {[%emt 0:02:41]} h5 {[%emt 0:00:59]} 37. gxh5 {[%emt 0:00:15]} gxh5 {[%emt 0:00:01]} 38. f5 {[%emt 0:00:21]} exf5+ {[%emt 0:00:04]} 39. Kxf5 {[%emt 0:00:01]} Kd5 {[%emt 0:00:07]} 40. e6 {[%emt 0:01:25]} Bc6 {[%emt 0:00:52]} 41. e7 {[%emt 0:00:30]} b5 {[%emt 0:00:28]} 42. Kg6 {[%emt 0:00:24]} Be8+ {[%emt 0:01:15]} 43. Kg7 {[%emt 0:01:25]} Kc4 {[%emt 0:00:05]} 44. Kf8 {[%emt 0:00:04]} Bd7 {[%emt 0:00:11]} 45. e8=Q {[%emt 0:00:14]} Bxe8 {[%emt 0:00:04]} 46. Kxe8 {[%emt 0:00:05]} b4 {[%emt 0:00:17]} 47. axb4 {[%emt 0:02:46]} cxb4 {[%emt 0:00:25]} 48. Kf7 {[%emt 0:00:07]} a3 {[%emt 0:01:38]} 49. Bc1 {[%emt 0:00:08]} a2 {[%emt 0:00:24]} 50. Bb2 {[%emt 0:00:05]} Kb3 {[%emt 0:00:03]} 0-1

[Event "10th Iberoamericano-ch 2024"]
[Site "Linares"]
[Date "2024.09.28"]
[Round "6.5"]
[White "Fernandez Guillen, Ernesto J."]
[Black "Garrido Outon, Alex"]
[Result "1-0"]
[ECO "C50"]
[WhiteElo "2463"]
[BlackElo "2448"]
[Annotator "ChessBase"]
[PlyCount "66"]
[EventDate "2024.09.25"]
[EventType "swiss"]
[EventCountry "ESP"]
[SourceTitle "playchess.com"]
[Source "ChessBase"]
[SourceQuality "1"]
[TimeControl "5400+30"]

1. e4 {[%emt 0:06:43]} e5 {[%emt 0:00:11]} 2. Nf3 {[%emt 0:00:09]} Nc6 {[%emt 0:00:05]} 3. Bc4 {[%emt 0:00:16]} d6 {[%emt 0:00:13]} 4. h3 {[%emt 0:01:01]} Be7 {[%emt 0:01:21]} 5. d4 {[%emt 0:00:48]} Nf6 {[%emt 0:01:25]} 6. Nc3 {[%emt 0:03:49]} O-O {[%emt 0:00:59]} 7. d5 {[%emt 0:00:32]} Nb8 {[%emt 0:00:15]} 8. g4 {[%emt 0:02:05]} Nbd7 {[%emt 0:08:53]} 9. Be3 {[%emt 0:05:04]} Nb6 {[%emt 0:10:10]} 10. Bb3 {[%emt 0:25:08]} c6 {[%emt 0:00:27]} 11. g5 {[%emt 0:01:25]} Nfd7 {[%emt 0:01:21]} 12. dxc6 {[%emt 0:04:40]} bxc6 {[%emt 0:00:09]} 13. Rg1 {[%emt 0:00:38]} Ba6 {[%emt 0:08:22]} 14. Nd2 {[%emt 0:20:50]} Nc5 {[%emt 0:03:05]} 15. g6 {[%emt 0:00:57]} hxg6 {[%emt 0:09:39]} 16. Rxg6 {[%emt 0:01:17]} Bf6 {[%emt 0:00:06]} 17. Rg1 {[%emt 0:06:08]} Qe7 {[%emt 0:05:41]} 18. Qf3 {[%emt 0:04:33]} Rfd8 {[%emt 0:00:43]} 19. O-O-O {[%emt 0:00:47]} Nxb3+ {[%emt 0:01:33]} 20. axb3 {[%emt 0:01:46]} Qe6 {[%emt 0:04:07]} 21. Bg5 {[%emt 0:06:19]} Nd7 {[%emt 0:07:31]} 22. h4 {[%emt 0:01:55]} Bxg5 {[%emt 0:02:54]} 23. Rxg5 {[%emt 0:00:04]} f6 {[%emt 0:02:00]} 24. Rg3 {[%emt 0:00:25]} Nf8 {[%emt 0:00:05]} 25. Rdg1 {[%emt 0:00:05]} Rd7 {[%emt 0:00:40]} 26. Nd1 {[%emt 0:00:06]} g6 {[%emt 0:01:46]} 27. Ne3 {[%emt 0:00:45]} Kh8 {[%emt 0:00:41]} 28. Ng4 {[%emt 0:04:14]} Rf7 {[%emt 0:00:09]} 29. Qc3 {[%emt 0:01:31]} d5 {[%emt 0:01:28]} 30. Nf3 {[%emt 0:00:32]} Re8 {[%emt 0:01:25]} 31. Ngxe5 {[%emt 0:00:39]} fxe5 {[%emt 0:01:50]} 32. Ng5 {[%emt 0:00:05]} Qf6 {[%emt 0:00:05]} 33. Rf3 {[%emt 0:00:37]} Qe7 1-0

[Event "10th Iberoamericano-ch 2024"]
[Site "Linares"]
[Date "2024.09.28"]
[Round "6.6"]
[White "Zambrana, Osvaldo"]
[Black "Vallejo Pons, Francisco"]
[Result "0-1"]
[ECO "B90"]
[WhiteElo "2405"]
[BlackElo "2657"]
[Annotator "ChessBase"]
[PlyCount "82"]
[EventDate "2024.09.25"]
[EventType "swiss"]
[EventCountry "ESP"]
[SourceTitle "playchess.com"]
[Source "ChessBase"]
[SourceQuality "1"]
[TimeControl "5400+30"]

1. e4 {[%emt 0:00:07]} c5 {[%emt 0:00:35]} 2. Nf3 {[%emt 0:00:16]} d6 {[%emt 0:00:07]} 3. d4 {[%emt 0:00:33]} cxd4 {[%emt 0:00:06]} 4. Nxd4 {[%emt 0:00:05]} Nf6 {[%emt 0:00:05]} 5. Nc3 {[%emt 0:00:07]} a6 {[%emt 0:00:21]} 6. Rg1 {[%emt 0:00:42]} b5 {[%emt 0:05:48]} 7. g4 {[%emt 0:01:51]} Bb7 {[%emt 0:01:56]} 8. Bg2 {[%emt 0:07:45]} e6 {[%emt 0:03:16]} 9. Qe2 {[%emt 0:10:13]} Nfd7 {[%emt 0:03:31]} 10. Be3 {[%emt 0:07:41]} Nc6 {[%emt 0:12:38]} 11. O-O-O {[%emt 0:04:31]} Be7 {[%emt 0:04:44]} 12. a3 {[%emt 0:14:42]} Nce5 {[%emt 0:05:26]} 13. f4 {[%emt 0:08:37]} Nc4 {[%emt 0:00:21]} 14. Bf2 {[%emt 0:00:05]} O-O {[%emt 0:10:56]} 15. h4 {[%emt 0:13:26]} Rc8 {[%emt 0:05:48]} 16. Rd3 {[%emt 0:00:12]} Re8 {[%emt 0:07:38]} 17. g5 {[%emt 0:00:33]} e5 {[%emt 0:04:03]} 18. fxe5 {[%emt 0:02:06]} Ndxe5 {[%emt 0:00:07]} 19. Rg3 {[%emt 0:00:15]} g6 {[%emt 0:08:33]} 20. Kb1 {[%emt 0:06:44]} Bf8 {[%emt 0:00:58]} 21. Qd1 {[%emt 0:03:05]} Bg7 {[%emt 0:01:22]} 22. Nb3 {[%emt 0:07:03]} a5 {[%emt 0:08:48]} 23. Bd4 {[%emt 0:00:30]} Bc6 {[%emt 0:03:38]} 24. Bf1 {[%emt 0:04:21]} b4 {[%emt 0:00:48]} 25. axb4 {[%emt 0:01:42]} axb4 {[%emt 0:00:09]} 26. Bxc4 {[%emt 0:04:52]} bxc3 {[%emt 0:00:41]} 27. Rxc3 {[%emt 0:00:02]} Bxe4 {[%emt 0:00:40]} 28. Bb5 {[%emt 0:00:02]} Rf8 {[%emt 0:03:24]} 29. Re1 {[%emt 0:01:31]} Rb8 {[%emt 0:01:00]} 30. Rxe4 {[%emt 0:00:10]} Rxb5 {[%emt 0:00:01]} 31. Qf1 {[%emt 0:00:30]} Qa8 {[%emt 0:02:47]} 32. Re1 {[%emt 0:00:11]} Qa4 {[%emt 0:01:01]} 33. Rc7 {[%emt 0:01:59]} Rxb3 {[%emt 0:01:42]} 34. Bxe5 {[%emt 0:00:01]} Bxe5 {[%emt 0:00:43]} 35. cxb3 {[%emt 0:00:01]} Qxb3 {[%emt 0:00:26]} 36. Qf2 {[%emt 0:00:03]} Ra8 {[%emt 0:01:18]} 37. Rxe5 {[%emt 0:00:51]} dxe5 {[%emt 0:00:18]} 38. Qc2 {[%emt 0:00:08]} Qa2+ {[%emt 0:01:40]} 39. Kc1 {[%emt 0:00:02]} Qa1+ {[%emt 0:00:44]} 40. Qb1 {[%emt 0:01:57]} Qa5 {[%emt 0:01:01]} 41. Rc3 {[%emt 0:00:02]} Qb4 {[%emt 0:00:13]} 0-1

[Event "10th Iberoamericano-ch 2024"]
[Site "Linares"]
[Date "2024.09.28"]
[Round "6.7"]
[White "Veiga, Jose Francisco R P N"]
[Black "Henriquez Villagra, Cristobal"]
[Result "0-1"]
[ECO "B22"]
[WhiteElo "2404"]
[BlackElo "2604"]
[Annotator "ChessBase"]
[PlyCount "98"]
[EventDate "2024.09.25"]
[EventType "swiss"]
[EventCountry "ESP"]
[SourceTitle "playchess.com"]
[Source "ChessBase"]
[SourceQuality "1"]
[TimeControl "5400+30"]

1. e4 {[%emt 0:02:19]} c5 {[%emt 0:05:07]} 2. c3 {[%emt 0:00:25]} Nf6 {[%emt 0:01:54]} 3. e5 {[%emt 0:00:19]} Nd5 {[%emt 0:00:04]} 4. Nf3 {[%emt 0:00:15]} Nc6 {[%emt 0:01:08]} 5. Bc4 {[%emt 0:01:21]} Nb6 {[%emt 0:04:39]} 6. Bb3 {[%emt 0:00:24]} d5 {[%emt 0:00:41]} 7. exd6 {[%emt 0:03:08]} e6 {[%emt 0:09:38]} 8. O-O Bxd6 {[%emt 0:01:45]} 9. d4 {[%emt 0:01:26]} c4 {[%emt 0:08:08]} 10. Bc2 {[%emt 0:00:27]} Ne7 {[%emt 0:00:39]} 11. Re1 {[%emt 0:04:45]} Qc7 {[%emt 0:11:22]} 12. Nbd2 {[%emt 0:02:15]} Ned5 {[%emt 0:03:19]} 13. Ne4 {[%emt 0:01:18]} Be7 {[%emt 0:00:04]} 14. Ng3 {[%emt 0:15:23]} O-O {[%emt 0:08:14]} 15. Ne5 {[%emt 0:05:58]} f5 {[%emt 0:01:31]} 16. Qe2 {[%emt 0:02:46]} Bf6 {[%emt 0:02:01]} 17. Nh5 {[%emt 0:03:25]} Bxe5 {[%emt 0:01:30]} 18. Qxe5 {[%emt 0:05:17]} Qxe5 {[%emt 0:00:07]} 19. Rxe5 {[%emt 0:00:04]} Bd7 {[%emt 0:01:33]} 20. Bd2 {[%emt 0:00:59]} g6 {[%emt 0:02:25]} 21. Ng3 {[%emt 0:00:47]} Kf7 {[%emt 0:00:21]} 22. Rae1 {[%emt 0:01:06]} Rfe8 {[%emt 0:00:36]} 23. f3 {[%emt 0:03:37]} Ba4 {[%emt 0:03:45]} 24. Bb1 {[%emt 0:03:21]} a5 {[%emt 0:00:20]} 25. Nh1 {[%emt 0:02:04]} Nd7 {[%emt 0:06:19]} 26. R5e2 {[%emt 0:00:07]} Ra6 {[%emt 0:00:03]} 27. Nf2 {[%emt 0:01:07]} Kg7 {[%emt 0:01:40]} 28. g4 {[%emt 0:06:32]} N7f6 {[%emt 0:01:30]} 29. h4 {[%emt 0:07:58]} Rb6 {[%emt 0:02:43]} 30. Bc1 {[%emt 0:00:24]} Kf7 {[%emt 0:05:15]} 31. Bg5 {[%emt 0:04:53]} h5 {[%emt 0:02:20]} 32. gxh5 {[%emt 0:01:05]} Nxh5 {[%emt 0:00:50]} 33. Nh3 {[%emt 0:00:04]} Bd7 {[%emt 0:00:35]} 34. Kf2 {[%emt 0:02:21]} Rh8 {[%emt 0:01:25]} 35. Bc1 {[%emt 0:01:39]} Ng7 {[%emt 0:02:46]} 36. Bg5 {[%emt 0:01:26]} Re8 {[%emt 0:02:07]} 37. Rg1 {[%emt 0:00:53]} Nh5 {[%emt 0:00:27]} 38. Rge1 {[%emt 0:01:15]} Nhf6 {[%emt 0:01:12]} 39. Bh6 {[%emt 0:00:37]} Rh8 {[%emt 0:01:02]} 40. Bg5 {[%emt 0:00:03]} Ra6 {[%emt 0:00:48]} 41. Kg1 {[%emt 0:01:40]} b5 {[%emt 0:01:11]} 42. Bd2 {[%emt 0:00:18]} b4 {[%emt 0:00:50]} 43. Ng5+ {[%emt 0:00:20]} Ke7 {[%emt 0:00:03]} 44. cxb4 {[%emt 0:04:01]} axb4 {[%emt 0:00:02]} 45. b3 {[%emt 0:00:12]} c3 {[%emt 0:00:58]} 46. Bc1 {[%emt 0:00:06]} Nh5 {[%emt 0:00:16]} 47. Kh2 {[%emt 0:02:25]} Nhf4 {[%emt 0:00:08]} 48. Rf2 {[%emt 0:01:11]} Bb5 {[%emt 0:01:04]} 49. Bxf4 {[%emt 0:00:44]} Nxf4 {[%emt 0:00:02]} 0-1

[Event "10th Iberoamericano-ch 2024"]
[Site "Linares"]
[Date "2024.09.28"]
[Round "6.8"]
[White "Cesar Maestre, Bernardo"]
[Black "Fier, Alexandr"]
[Result "0-1"]
[ECO "B92"]
[WhiteElo "2369"]
[BlackElo "2551"]
[Annotator "ChessBase"]
[PlyCount "120"]
[EventDate "2024.09.25"]
[EventType "swiss"]
[EventCountry "ESP"]
[SourceTitle "playchess.com"]
[Source "ChessBase"]
[SourceQuality "1"]
[TimeControl "5400+30"]

1. e4 {[%emt 0:00:11]} c5 {[%emt 0:00:04]} 2. Nf3 {[%emt 0:00:30]} d6 {[%emt 0:00:03]} 3. d4 cxd4 {[%emt 0:00:05]} 4. Nxd4 {[%emt 0:00:13]} Nf6 {[%emt 0:00:15]} 5. Nc3 {[%emt 0:00:08]} a6 {[%emt 0:00:02]} 6. Be2 {[%emt 0:00:13]} e5 {[%emt 0:00:05]} 7. Nb3 {[%emt 0:00:07]} Be7 {[%emt 0:00:02]} 8. Be3 {[%emt 0:00:00]} Be6 9. f4 b5 {[%emt 0:06:49]} 10. fxe5 {[%emt 0:17:05]} dxe5 {[%emt 0:00:20]} 11. Qxd8+ {[%emt 0:00:51]} Bxd8 {[%emt 0:03:25]} 12. Nc5 {[%emt 0:07:53]} Bc8 {[%emt 0:00:10]} 13. Nd3 {[%emt 0:15:07]} Nc6 {[%emt 0:01:46]} 14. O-O-O {[%emt 0:04:41]} O-O {[%emt 0:00:17]} 15. Bf3 {[%emt 0:01:40]} Re8 {[%emt 0:01:11]} 16. Nf2 {[%emt 0:03:32]} Rb8 {[%emt 0:01:51]} 17. Nd5 {[%emt 0:01:07]} Nxd5 {[%emt 0:00:11]} 18. exd5 {[%emt 0:00:24]} Nd4 {[%emt 0:00:03]} 19. Bxd4 {[%emt 0:01:09]} exd4 {[%emt 0:00:05]} 20. Rxd4 {[%emt 0:01:15]} Bb6 {[%emt 0:16:26]} 21. Re4 {[%emt 0:00:48]} Rd8 {[%emt 0:00:18]} 22. Nd3 {[%emt 0:01:59]} Bb7 {[%emt 0:00:04]} 23. Re2 {[%emt 0:04:09]} Bxd5 {[%emt 0:09:48]} 24. Bxd5 {[%emt 0:00:31]} Rxd5 {[%emt 0:00:03]} 25. Nb4 {[%emt 0:03:12]} Rdd8 {[%emt 0:00:05]} 26. Nc6 {[%emt 0:10:42]} Re8 {[%emt 0:00:05]} 27. Rhe1 {[%emt 0:00:07]} Rxe2 {[%emt 0:00:06]} 28. Rxe2 {[%emt 0:00:03]} Ra8 {[%emt 0:00:08]} 29. c3 {[%emt 0:00:28]} g6 {[%emt 0:00:34]} 30. Kc2 {[%emt 0:00:21]} Kg7 {[%emt 0:00:03]} 31. Nb4 {[%emt 0:01:50]} Bc7 {[%emt 0:02:26]} 32. h3 {[%emt 0:00:18]} Bd6 {[%emt 0:00:03]} 33. Kb3 {[%emt 0:03:01]} a5 {[%emt 0:00:37]} 34. Nd3 {[%emt 0:00:32]} a4+ {[%emt 0:00:08]} 35. Kc2 {[%emt 0:00:05]} h5 {[%emt 0:00:04]} 36. a3 {[%emt 0:00:40]} g5 {[%emt 0:04:14]} 37. Re4 {[%emt 0:01:52]} Kf6 {[%emt 0:00:03]} 38. Ne1 {[%emt 0:02:38]} Kf5 {[%emt 0:03:31]} 39. Kd3 {[%emt 0:01:40]} g4 {[%emt 0:02:19]} 40. Nc2 {[%emt 0:01:51]} Kg5 {[%emt 0:03:26]} 41. Rd4 {[%emt 0:01:18]} Be5 {[%emt 0:00:05]} 42. Rd5 {[%emt 0:00:48]} f6 {[%emt 0:00:04]} 43. hxg4 {[%emt 0:00:37]} Kxg4 {[%emt 0:00:33]} 44. Rxb5 {[%emt 0:02:26]} Kg3 {[%emt 0:00:04]} 45. Ne3 {[%emt 0:00:10]} Kf2 {[%emt 0:02:07]} 46. Rb4 {[%emt 0:05:22]} Rd8+ {[%emt 0:00:33]} 47. Ke4 {[%emt 0:00:13]} Re8 {[%emt 0:00:02]} 48. Kd3 {[%emt 0:00:50]} Bd6 {[%emt 0:07:33]} 49. Re4 {[%emt 0:00:51]} Rxe4 {[%emt 0:00:03]} 50. Kxe4 {[%emt 0:00:08]} Bc5 {[%emt 0:00:02]} 51. Nd5 {[%emt 0:01:28]} h4 {[%emt 0:00:04]} 52. Nxf6 {[%emt 0:03:15]} Kxg2 {[%emt 0:00:07]} 53. Nd5 {[%emt 0:01:57]} Kg3 {[%emt 0:01:01]} 54. Nf4 {[%emt 0:00:40]} Bd6 {[%emt 0:00:07]} 55. Ne2+ {[%emt 0:00:11]} Kf2 {[%emt 0:02:13]} 56. Nd4 {[%emt 0:00:14]} h3 {[%emt 0:00:04]} 57. Nf3 {[%emt 0:00:06]} Bb8 {[%emt 0:00:07]} 58. c4 {[%emt 0:00:51]} Bd6 {[%emt 0:00:04]} 59. c5 {[%emt 0:00:44]} Bxc5 {[%emt 0:00:04]} 60. Kf4 {[%emt 0:00:10]} Bd6+ {[%emt 0:00:10]} 0-1